fUSD/lending_fUSD_20240907
["ID","MTS","AMOUNT","RATE_DAILY","PERIOD"]
[337526099,1725743432408,-680.27,0.00012336,2]
[337526100,1725743432417,-153.45,0.00012688,2]
[337526101,1725743432426,-153.45,0.00012693,2]
[337526102,1725743432435,-833.13621162,0.00012697,2]
[337526103,1725743432450,-417.11768739,0.00012697,2]
[337526104,1725743432507,-535.76812977,0.00012697,2]
[337526105,1725743432566,-5773.48038195,0.00012697,2]
[337526106,1725743432623,-1323.01385731,0.00012697,2]
[337526122,1725743438426,-250.0,0.0001206,2]
[337526123,1725743438439,-698.10458747,0.00012697,2]
[337526124,1725743438538,-1313.84627701,0.00012697,2]
[337526125,1725743438678,-2045.27525148,0.00012697,2]
[337526128,1725743440492,-2708.80686186,0.00012697,2]
[337526129,1725743440504,-153.45,0.00012697,2]
[337526130,1725743440516,-153.45,0.00012702,2]
[337526131,1725743440529,-153.45,0.00012706,2]
[337526132,1725743440538,-153.45,0.00012711,2]
[337526133,1725743440547,-153.45,0.00012715,2]
[337526134,1725743440556,-153.45,0.0001272,2]
[337526135,1725743440566,-153.45,0.00012724,2]
[337526136,1725743440576,-153.45,0.00012729,2]
[337526137,1725743440586,-153.45,0.00012734,2]
[337526138,1725743440596,-153.45,0.00012738,2]
[337526139,1725743440606,-1824.395,0.0001274,2]
[337526140,1725743440834,-608.476,0.0001274,2]
[337526141,1725743440860,-153.45,0.00012743,2]
[337526142,1725743440873,-153.45,0.00012747,2]
[337526143,1725743440882,-153.45,0.00012752,2]
[337526144,1725743440894,-2874.71969,0.0001287,2]
[337526145,1725743440905,-150.0,0.00012899,2]
[337526146,1725743440915,-376.14313468,0.000129,2]
[337526147,1725743440924,-166.80786481,0.000129,2]
[337526149,1725743440934,-5865.2772195,0.000129,2]
[337526152,1725743440958,-211.7227805,0.000129,2]
[337526154,1725743440968,-19596.55694115,0.000129,2]
[337526190,1725743443391,-11174.8182083,0.000129,2]
[337526191,1725743443448,-5268.70529555,0.000129,2]
[337526192,1725743443504,-6474.09916871,0.000129,2]
[337526193,1725743443516,-676.96199,0.000129,2]
[337526194,1725743443565,-532.36978236,0.000129,2]
[337526195,1725743443578,-823.78370028,0.000129,2]
[337526206,1725743446553,-816.16493923,0.000129,2]
[337526207,1725743446565,-614.02017442,0.000129,2]
[337526208,1725743446574,-345.64030355,0.000129,2]
[337526209,1725743446618,-654.35969645,0.000129,2]
[337526210,1725743446628,-1000.0,0.000129,2]
[337526211,1725743446637,-15735.2954,0.000129,2]
[337526212,1725743446649,-176.94998349,0.000129,2]
[337526213,1725743446659,-2627.8068284,0.000129,2]
[337526214,1725743446670,-879.41035815,0.000129,2]
[337526215,1725743446746,-2697.90321345,0.000129,2]
[337526216,1725743446756,-1210.0,0.000129,2]
[337526217,1725743446765,-2500.0,0.000129,2]
[337526218,1725743446776,-1723.4823,0.000129,2]
[337526219,1725743446785,-500.0,0.00012973,2]
[337526220,1725743446795,-151.53,0.0001299,2]
[337526221,1725743446804,-11694.20854734,0.00012995,2]
[337526222,1725743446816,-379.89623438,0.00012995,2]
[337526223,1725743446834,-8849.56618415,0.00012995,2]
[337526224,1725743446845,-7622.55047678,0.00012995,2]
[337526225,1725743446856,-2015.57078776,0.00012995,2]
[337526226,1725743446870,-607.71676,0.00012995,2]
[337526227,1725743446881,-453.08776319,0.00012995,2]
[337526228,1725743446894,-1533.09096458,0.00012995,2]
[337526229,1725743446915,-4646.07416302,0.00012995,2]
[337526230,1725743446924,-3925.82289366,0.00012995,2]
[337526231,1725743446935,-251.82908724,0.00012995,2]
[337526232,1725743446945,-2066.59370414,0.00012995,2]
[337526233,1725743446958,-302.89395556,0.00012995,2]
[337526234,1725743446968,-548.0,0.00013,2]
[337526235,1725743446978,-1359.10604444,0.00013,2]
[337526236,1725743446990,-1569.25968238,0.00013,2]
[337526237,1725743447001,-470.22347517,0.00013,2]
[337526238,1725743447012,-60000.00210243,0.00013,2]
[337526239,1725743447024,-5622.97592,0.00013,2]
[337526240,1725743447035,-5177.5175671,0.00013,2]
[337526241,1725743447047,-3017.17189591,0.00013,2]
[337526242,1725743616388,641.14,0.00010959,2]
[337526243,1725743943312,671.2,0.00010692,2]
[337526245,1725744154852,165.35,0.00010959,2]
[337526247,1725744297452,5035.0,0.00032145,30]
[337526248,1725744467419,654.7,0.00010499,2]
[337526263,1725744631563,-154.19,0.00012273,2]
[337526264,1725744631573,-249.86,0.00012283,2]
[337526265,1725744631582,-250.0,0.00012283,2]
[337526266,1725744631592,-250.0,0.00012359,2]
[337526267,1725744631602,-342.86,0.00012368,2]
[337526268,1725744631612,-177.84,0.00012653,2]
[337526269,1725744631621,-1000.0,0.000127,2]
[337526270,1725744631631,-750.14,0.00012718,2]
[337526271,1725744631640,-654.7,0.00012762,2]
[337526272,1725744631649,-154.19,0.0001289,2]
[337526273,1725744631659,-154.19,0.0001289,2]
[337526274,1725744631668,-154.19,0.0001289,2]
[337526275,1725744631678,-300.0,0.00012898,2]
[337526276,1725744631689,-1551.327,0.00012899,2]
[337526277,1725744631699,-523.945,0.00012899,2]
[337526278,1725744631710,-150.0,0.00012899,2]
[337526279,1725744631721,-777.2697,0.000129,2]
[337526280,1725744631731,-384.7222,0.000129,2]
[337526281,1725744631743,-478.75942674,0.000129,2]
[337526282,1725744631756,-2836.89999999,0.000129,2]
[337526283,1725744631773,-2634.87248244,0.000129,2]
[337526284,1725744631785,-380.03886704,0.000129,2]
[337526285,1725744631801,-1316.83678172,0.000129,2]
[337526286,1725744631813,-283.63674207,0.000129,2]
[337526287,1725744631822,-300.91450776,0.000129,2]
[337526288,1725744631831,-16055.5,0.000129,2]
[337526289,1725744631841,-166.80786481,0.000129,2]
[337526290,1725744631852,-7500.0,0.000129,2]
[337526291,1725744631863,-174.27904034,0.000129,2]
[337526292,1725744631872,-2500.0,0.000129,2]
[337526293,1725744631881,-1000.0,0.000129,2]
[337526294,1725744631890,-203.64341238,0.000129,2]
[337526295,1725744631899,-500.0,0.00012973,2]
[337526296,1725744631909,-150.99,0.0001299,2]
[337526297,1725744631918,-537.9419557,0.0001299,2]
[337526298,1725744631928,-537.9419557,0.0001299,2]
[337526299,1725744631937,-537.9419557,0.0001299,2]
[337526300,1725744631947,-536.0,0.00013,2]
[337526301,1725744631956,-23665.13213917,0.00013,2]
[337526302,1725744631968,-530.14499983,0.00013,2]
[337526303,1725744631979,-966.43463374,0.00013,2]
[337526304,1725744631990,-618.03494291,0.00013,2]
[337526305,1725744632002,-232880.85464918,0.00013,2]
[337526306,1725744632013,-553.0,0.00013,2]
[337526307,1725744632025,-590.16069176,0.00013,2]
[337526310,1725744637561,-373.07069602,0.00013,2]
[337526311,1725744637621,-5423.08144,0.00013,2]
[337526312,1725744637791,-2098.92088665,0.00013,2]
[337526313,1725744637851,-7835.40291658,0.00013,2]
[337526374,1725744639592,-592.43915005,0.00013,2]
[337526375,1725744639604,-1118.10216909,0.00013,2]
[337526376,1725744639615,-434.01223793,0.00013,2]
[337526392,1725744645714,-4970.41894437,0.00013,2]
[337526393,1725744645885,-1576.40621,0.00013,2]
[337526394,1725744645950,-127706.39759193,0.00013,2]
[337526395,1725744645961,-43108.08925,0.00013,2]
[337526397,1725744693868,172.53,0.00010959,2]
[337526399,1725744961277,621.64,0.00011064,2]
[337526400,1725745077864,750.0,0.00011,2]
[337526403,1725745482605,605.14,0.00010806,2]
[337526407,1725745637568,128604.30154785,0.00032144,30]
[337526411,1725745780198,330.06,0.00010959,2]
[337526412,1725745809901,1468.0,0.00032144,30]
[337526426,1725745831847,-250.0,0.00012441,2]
[337526427,1725745831858,-177.85,0.00012577,2]
[337526428,1725745831870,-171.91718399,0.00012624,2]
[337526429,1725745831880,-250.0,0.00012723,2]
[337526430,1725745831890,-199.89,0.00012751,2]
[337526431,1725745831899,-321.80175009,0.00012821,2]
[337526432,1725745832128,-428.11024881,0.00012821,2]
[337526433,1725745832157,-50.1980011,0.00012821,2]
[337526435,1725745832167,-3000.0,0.0001287,2]
[337526437,1725745832179,-150.0,0.00012877,2]
[337526439,1725745832188,-264.0,0.00012899,2]
[337526441,1725745832200,-240.7316062,0.000129,2]
[337526443,1725745832210,-173.44433547,0.000129,2]
[337526445,1725745832220,-273.23043145,0.000129,2]
[337526447,1725745832230,-314.54737843,0.000129,2]
[337526449,1725745832240,-164.67766966,0.000129,2]
[337526451,1725745832249,-150.19325905,0.00012907,2]
[337526454,1725745832264,-107.52674095,0.00012907,2]
[337526456,1725745832274,-423.32099788,0.00012973,2]
[337526498,1725745839848,-500.0,0.00012973,2]
[337526499,1725745839857,-817.74000212,0.00012973,2]
[337526500,1725745839867,-419.156,0.00012973,2]
[337526501,1725745839876,-160.16584788,0.00013,2]
[337526502,1725745840031,-721.79,0.00013,2]
[337526591,1725745845876,-3029.01757007,0.00013,2]
[337526593,1725746021325,1407.0,0.00032144,30]
[337526595,1725746090726,1000.0,0.00011938,2]
[337526599,1725746251229,615.06,0.00010848,2]
[337526611,1725746536443,157.95,0.00010959,2]
[337526612,1725746569747,-250.0,0.00012708,2]
[337526613,1725746569768,-992.849,0.0001274,2]
[337526614,1725746569788,-335.325,0.0001274,2]
[337526615,1725746569808,-300.0,0.00012899,2]
[337526616,1725746569828,-192.58528496,0.000129,2]
[337526617,1725746569848,-275.43409471,0.000129,2]
[337526618,1725746569868,-2500.0,0.000129,2]
[337526619,1725746569888,-1391.4111,0.000129,2]
[337526620,1725746569908,-1469.39552033,0.000129,2]
[337526621,1725746574821,-415.51532336,0.000129,2]
[337526622,1725746574841,-314.54737843,0.000129,2]
[337526623,1725746574860,-182.15362098,0.000129,2]
[337526624,1725746574881,-500.0,0.00012973,2]
[337526625,1725746574901,-152.74,0.0001299,2]
[337526626,1725746574920,-150.0,0.00012998,2]
[337526627,1725746574940,-500.0,0.00012999,2]
[337526628,1725746574960,-420.6543901,0.00012999,2]
[337526629,1725746574979,-500.0,0.00012999,2]
[337526630,1725746574999,-500.0,0.00012999,2]
[337526631,1725746575018,-500.0,0.00012999,2]
[337526632,1725746575039,-500.0,0.00012999,2]
[337526633,1725746575058,-500.0,0.00012999,2]
[337526634,1725746575077,-500.0,0.00012999,2]
[337526635,1725746575097,-500.0,0.00012999,2]
[337526636,1725746575118,-500.0,0.00012999,2]
[337526637,1725746575138,-500.0,0.00012999,2]
[337526638,1725746575158,-500.0,0.00012999,2]
[337526639,1725746575177,-500.0,0.00012999,2]
[337526640,1725746575196,-586.55389173,0.00012999,2]
[337526641,1725746575215,-500.0,0.00012999,2]
[337526642,1725746575235,-500.0,0.00012999,2]
[337526643,1725746575255,-277.8353954,0.00012999,2]
[337526644,1725746575303,-222.1646046,0.00012999,2]
[337526645,1725746575323,-500.0,0.00012999,2]
[337526646,1725746575343,-501.61527546,0.00012999,2]
[337526647,1725746575365,-500.0,0.00012999,2]
[337526648,1725746575384,-500.0,0.00012999,2]
[337526649,1725746575404,-196.64648908,0.00012999,2]
[337526650,1725746575423,-539.0,0.00013,2]
[337526651,1725746575446,-7040.57363086,0.00013,2]
[337526652,1725746575494,-10000.0,0.00013,2]
[337526653,1725746575814,-10000.0,0.00013,2]
[337526654,1725746576243,-10000.0,0.00013,2]
[337526655,1725746576721,-10000.0,0.00013,2]
[337526656,1725746577132,-10000.0,0.00013,2]
[337526657,1725746577694,-10000.0,0.00013,2]
[337526658,1725746578100,-10000.0,0.00013,2]
[337526659,1725746578522,-10000.0,0.00013,2]
[337526660,1725746578955,-10000.0,0.00013,2]
[337526661,1725746579376,-10000.0,0.00013,2]
[337526662,1725746579826,-10000.0,0.00013,2]
[337526663,1725746580237,-10000.0,0.00013,2]
[337526664,1725746580597,-10000.0,0.00013,2]
[337526665,1725746581005,-10000.0,0.00013,2]
[337526666,1725746581373,-300.0,0.00012999,2]
[337526667,1725746581400,-9700.0,0.00013,2]
[337526668,1725746581763,-10000.0,0.00013,2]
[337526669,1725746582158,-10000.0,0.00013,2]
[337526670,1725746582546,-10000.0,0.00013,2]
[337526671,1725746582954,-10000.0,0.00013,2]
[337526672,1725746583337,-10000.0,0.00013,2]
[337526673,1725746583736,-10000.0,0.00013,2]
[337526674,1725746584160,-10000.0,0.00013,2]
[337526675,1725746584533,-10000.0,0.00013,2]
[337526676,1725746585224,-10000.0,0.00013,2]
[337526677,1725746587020,-10000.0,0.00013,2]
[337526678,1725746588045,-10000.0,0.00013,2]
[337526681,1725746757046,250.0,0.00011938,2]
[337526684,1725746840016,596.15,0.00010844,2]
[337526685,1725746885858,750.0,0.00011,2]
[337526693,1725747031971,-1856.46991,0.0001287,2]
[337526694,1725747031981,-247.89068523,0.000129,2]
[337526695,1725747031990,-314.54737843,0.000129,2]
[337526696,1725747031999,-2422.52877788,0.000129,2]
[337526697,1725747032008,-95.36568071,0.00012951,2]
[337526698,1725747032019,-104.63431929,0.00012951,2]
[337526699,1725747032028,-500.0,0.00012973,2]
[337526700,1725747032037,-411.1829533,0.0001299,2]
[337526701,1725747032140,-1891.96129736,0.0001299,2]
[337526819,1725747037988,-281.37663109,0.0001299,2]
[337526820,1725747038590,-396.35755507,0.0001299,2]
[337526821,1725747038603,-774.76771504,0.0001299,2]
[337526823,1725747040002,-470.73536654,0.0001299,2]
[337526824,1725747040014,-673.50042523,0.0001299,2]
[337526825,1725747040024,-297.60757477,0.00012999,2]
[337526826,1725747040068,-202.39242523,0.00012999,2]
[337526827,1725747040077,-500.0,0.00012999,2]
[337526828,1725747040086,-500.0,0.00012999,2]
[337526829,1725747040096,-152.98738233,0.00012999,2]
[337526830,1725747040106,-150.0,0.00012999,2]
[337526831,1725747040115,-768.28849228,0.00013,2]
[337526832,1725747040135,-282.51987359,0.00013,2]
[337526833,1725747040146,-10687.069566,0.00013,2]
[337526834,1725747040244,-1504.411741,0.00013,2]
[337526835,1725747040361,-8215.81430112,0.00013,2]
[337526836,1725747040373,-1626.45291562,0.00013,2]
[337526850,1725747040957,-3172.05138762,0.00013,2]
[337526851,1725747040969,-8395.8468521,0.00013,2]
[337526852,1725747040980,-879.93016262,0.00013,2]
[337526853,1725747040992,-1034.355,0.00013,2]
[337526854,1725747041003,-495.25624919,0.00013,2]
[337526921,1725747046127,-264.37005527,0.00012999,2]
[337526922,1725747046188,-535.62994473,0.00012999,2]
[337526923,1725747046198,-546.98997132,0.00013,2]
[337526924,1725747046250,-849.0895591,0.00013,2]
[337526925,1725747046311,-1130.07324647,0.00013,2]
[337526926,1725747388642,589.44,0.00011261,2]
[337526927,1725747539749,2000.0,0.00032145,30]
[337526928,1725747684651,2000.0,0.00032152,30]
[337526929,1725747700537,2000.0,0.00032152,30]
[337526930,1725747704126,2000.0,0.00032152,30]
[337526931,1725747706114,2000.0,0.00032152,30]
[337526932,1725747708296,2000.0,0.00032152,30]
[337526933,1725747710019,2000.0,0.00032152,30]
[337526934,1725747711762,2000.0,0.00032152,30]
[337526935,1725747735999,6934.49646867,0.0001,2]
[337526936,1725747746408,157.16,0.00010959,2]
[337526937,1725747826856,2000.0,0.00032152,30]
[337526938,1725747828829,2000.0,0.00032152,30]
[337526939,1725747830448,2000.0,0.00032152,30]
[337526940,1725747831971,2000.0,0.00032152,30]
[337526941,1725747839544,2000.0,0.00032152,30]
[337526942,1725747866541,2000.0,0.00032152,30]
[337526943,1725747899771,570.65,0.00010478,2]
[337526989,1725748238131,-250.0,0.00012344,2]
[337526990,1725748238141,-206.17,0.00012395,2]
[337526991,1725748238152,-1115.92,0.00012444,2]
[337526992,1725748238162,-186.11205936,0.00012471,2]
[337526993,1725748238173,-813.88794064,0.00012471,2]
[337526994,1725748238184,-200.0,0.000125,4]
[337526995,1725748238193,-500.0,0.000126,4]
[337526996,1725748238203,-217.78,0.00012604,2]
[337526997,1725748238212,-616.73252248,0.000127,4]
[337526998,1725748238224,-183.26747752,0.000127,4]
[337526999,1725748238234,-570.65,0.00012742,2]
[337527000,1725748238244,-932.4456561,0.000128,4]
[337527001,1725748238259,-167.5543439,0.000128,4]
[337527002,1725748238269,-16133.9236,0.000129,2]
[337527003,1725748238278,-154.06822796,0.000129,2]
[337527004,1725748238289,-1400.0,0.000129,4]
[337527005,1725748238299,-245.60476955,0.000129,2]
[337527006,1725748238308,-1256.60722912,0.000129,2]
[337527007,1725748238318,-317.13339458,0.000129,2]
[337527008,1725748238328,-177.86,0.0001293,2]
[337527009,1725748238337,-500.0,0.00012973,2]
[337527010,1725748238347,-257.59924589,0.00012999,2]
[337527011,1725748238356,-500.0,0.00012999,2]
[337527012,1725748238365,-388.60338206,0.00012999,2]
[337527013,1725748238375,-605.0,0.00013,2]
[337527014,1725748238384,-515265.48620918,0.00013,2]
[337527016,1725748238395,-1952.74361478,0.00013,2]
[337527017,1725748238411,-1168.70766274,0.00013,2]
[337527018,1725748238422,-1185.34288774,0.00013,2]
[337527021,1725748240219,-524.66514586,0.00013,2]
[337527022,1725748240231,-1056.7785687,0.00013,2]
[337527023,1725748240244,-1273.216,0.00013,2]
[337527024,1725748240306,-507.63022359,0.00013,2]
[337527025,1725748240318,-460.56973873,0.00013,2]
[337527026,1725748240395,-268.2,0.00013,2]
[337527027,1725748241159,-992.57555336,0.00013,2]
[337527028,1725748241171,-4448.17971961,0.00013,2]
[337527030,1725748241182,-1306.3948632,0.00013,2]
[337527057,1725748243109,-491.95327024,0.000129,2]
[337527058,1725748243119,-140599.39556033,0.00013,2]
[337527059,1725748243404,-1439.17281895,0.00013,2]
[337527060,1725748243415,-275.452,0.00013,2]
[337527062,1725748243430,-7155.68224347,0.00013,2]
[337527092,1725748246175,-642.8673204,0.00013,2]
[337527093,1725748246187,-315.00000008,0.00013,2]
[337527094,1725748246260,-1122.59869064,0.00013,2]
[337527095,1725748246271,-2826.19400833,0.00013,2]
[337527096,1725748246282,-1026.0,0.00013,2]
[337527097,1725748246303,-2265.95848343,0.00013,2]
[337527098,1725748246316,-258.90026698,0.00013,2]
[337527099,1725748246332,-4481.46949273,0.00013,2]
[337527100,1725748246348,-10996.24497985,0.00013,2]
[337527101,1725748246360,-253.90374581,0.00013,2]
[337527102,1725748246371,-1556.95999997,0.00013,2]
[337527103,1725748246383,-6637.6901424,0.00013,2]
[337527104,1725748246395,-1011.36027468,0.00013,2]
[337527105,1725748246407,-3567.11591837,0.00013,2]
[337527106,1725748246422,-726.52366915,0.00013,2]
[337527107,1725748246433,-965.71228603,0.00013,2]
[337527108,1725748246445,-254.584,0.00013,2]
[337527109,1725748246481,-37811.35699527,0.00013,2]
[337527125,1725748526584,534.88,0.0001145,2]
[337527126,1725748681150,191.5,0.00011938,2]
[337527127,1725748694758,750.0,0.00011,2]
[337527128,1725748761105,321.45,0.00010959,2]
[337527129,1725749065418,4510.66443803,0.00027,120]
[337527130,1725749067478,518.22,0.00011361,2]
[337527143,1725749432338,-250.0,0.00012637,2]
[337527144,1725749432349,-380.84770709,0.0001274,2]
[337527145,1725749432439,-360.00398161,0.0001274,2]
[337527146,1725749432451,-53.4273113,0.0001274,2]
[337527147,1725749432461,-227.13936302,0.0001274,2]
[337527148,1725749432475,-41.12063698,0.0001274,2]
[337527149,1725749432489,-186.2671,0.000129,2]
[337527150,1725749432499,-1629.60167872,0.000129,2]
[337527151,1725749432525,-396.48017172,0.000129,2]
[337527162,1725749440339,-6618.563923,0.000129,2]
[337527163,1725749440373,-1560.70143172,0.000129,2]
[337527164,1725749440385,-2123.07399969,0.000129,2]
[337527165,1725749440742,-702.286,0.000129,2]
[337527166,1725749440758,-8040.38885076,0.000129,2]
[337527167,1725749440770,-3145.404275,0.000129,2]
[337527168,1725749440782,-29753.84719739,0.000129,2]
[337527170,1725749440796,-526.97,0.000129,2]
[337527173,1725749440807,-4695.87836017,0.000129,2]
[337527175,1725749440820,-42466.77220368,0.000129,2]
[337527237,1725749443620,-2565.26299959,0.000129,2]
[337527238,1725749443641,-354.726,0.000129,2]
[337527240,1725749443656,-3208.873385,0.000129,2]
[337527241,1725749443670,-29603.99999999,0.000129,2]
[337527252,1725749446583,-200.0,0.000126,4]
[337527253,1725749446595,-5104.99802357,0.000129,2]
[337527254,1725749446607,-154.06822796,0.000129,2]
[337527255,1725749446618,-500.0,0.00012973,2]
[337527256,1725749446628,-437.0993329,0.00012995,2]
[337527257,1725749446637,-542.0,0.00013,2]
[337527258,1725749446647,-25038.85095213,0.00013,2]
[337527259,1725749446658,-11798.89053046,0.00013,2]
[337527261,1725749584541,502.39,0.00010582,2]
[337527262,1725749602135,5000.0,0.00032148,34]
[337527264,1725750342511,486.85,0.00010598,2]
[337527266,1725750504900,750.0,0.00011,2]
[337527275,1725750631499,-318.13,0.00012242,2]
[337527276,1725750631509,-800.0,0.00012297,2]
[337527277,1725750631519,-250.0,0.00012434,2]
[337527278,1725750631531,-250.0,0.00012434,2]
[337527279,1725750631542,-200.0,0.00012476,2]
[337527280,1725750631552,-486.85,0.00012862,2]
[337527281,1725750631562,-3000.0,0.0001287,2]
[337527282,1725750631587,-300.0,0.00012899,2]
[337527283,1725750631600,-154.06822796,0.000129,2]
[337527284,1725750631611,-150.0,0.000129,2]
[337527285,1725750631622,-150.0,0.000129,2]
[337527286,1725750631632,-302.05564284,0.000129,2]
[337527287,1725750631642,-837.73815276,0.000129,2]
[337527288,1725750631654,-10000.0,0.00012933,2]
[337527289,1725750631664,-635.423,0.00012994,2]
[337527290,1725750631674,-214.608,0.00012994,2]
[337527291,1725750631685,-297.0143873,0.00012999,2]
[337527292,1725750631695,-4118.44107978,0.00012999,2]
[337527293,1725750631708,-612.0,0.00013,2]
[337527294,1725750631718,-4110.49005047,0.00013,2]
[337527295,1725750631732,-14391.01,0.00013,2]
[337527296,1725750631743,-3149.336492,0.00013,2]
[337527297,1725750631756,-3110.63732712,0.00013,2]
[337527298,1725750631771,-578.82834642,0.00013,2]
[337527299,1725750631783,-322.91174239,0.00013,2]
[337527301,1725750637505,-10000.0,0.00012933,2]
[337527302,1725750637515,-36234.82249742,0.00013,2]
[337527304,1725750637528,-2001.05928,0.00013,2]
[337527305,1725750637540,-28172.51080659,0.00013,2]
[337527306,1725750637552,-638.24848553,0.00013,2]
[337527307,1725750637646,-1043303.54968232,0.00013,2]
[337527308,1725750637660,-659.72432777,0.00013,2]
[337527309,1725750637750,-401.67302706,0.00013,2]
[337527310,1725750637762,-1070.1255496,0.00013,2]
[337527311,1725750637775,-843.27,0.00013,2]
[337527337,1725750639486,-531.2423039,0.00012933,2]
[337527338,1725750639499,-1213.13686397,0.00012933,2]
[337527339,1725750639515,-354.33584849,0.00012933,2]
[337527340,1725750639527,-2923.62999489,0.00012933,2]
[337527343,1725750639553,-2402.51748544,0.00012933,2]
[337527344,1725750639567,-405.79,0.00012933,2]
[337527345,1725750639582,-2169.34750331,0.00012933,2]
[337527346,1725750639592,-387.49179744,0.00013,2]
[337527347,1725750639604,-687.06,0.00013,2]
[337527348,1725750639617,-1558.49740916,0.00013,2]
[337527349,1725750639629,-518.64371642,0.00013,2]
[337527350,1725750639703,-683.17028036,0.00013,2]
[337527368,1725750640158,-2666.01834605,0.00013,2]
[337527370,1725750640170,-3756.6679994,0.00013,2]
[337527372,1725750640185,-1620.745,0.00013,2]
[337527374,1725750640196,-502.49888056,0.00013,2]
[337527375,1725750640207,-2840.53,0.00013,2]
[337527377,1725750640220,-1035.0,0.00013,2]
[337527379,1725750640231,-5749.0,0.00013,2]
[337527382,1725750642481,-446.25,0.00012933,2]
[337527383,1725750642493,-2380.0,0.00012933,2]
[337527384,1725750642506,-583.54657677,0.00012933,2]
[337527385,1725750642517,-110.96543123,0.00013,2]
[337527386,1725750642774,-431.03456877,0.00013,2]
[337527387,1725750642784,-585.14786024,0.00013,2]
[337527388,1725750642801,-569.53933665,0.00013,2]
[337527389,1725750642813,-27330.35753324,0.00013,2]
[337527390,1725750642829,-301.25385499,0.00013,2]
[337527391,1725750642846,-6867.31409948,0.00013,2]
[337527401,1725750645548,-719.95798759,0.00013,2]
[337527402,1725750645582,-452.71751755,0.00013,2]
[337527403,1725750645615,-5725.10180032,0.00013,2]
[337527404,1725750645627,-17412.24119828,0.00013,2]
[337527405,1725750645643,-1734.84626364,0.00013,2]
[337527406,1725750645655,-286.68669669,0.00013,2]
[337527407,1725750645668,-912.34615092,0.00013,2]
[337527408,1725750645683,-673.60037733,0.00013,2]
[337527409,1725750645695,-10819.0,0.00013,2]
[337527410,1725750645716,-2448.9903007,0.00013,2]
[337527411,1725750645757,-2709.03931074,0.00013,2]
[337527412,1725750645771,-849.13398569,0.00013,2]
[337527413,1725750645783,-779.46259794,0.00013,2]
[337527414,1725750645799,-856.20926424,0.00013,2]
[337527415,1725750645819,-3700.01618862,0.00013,2]
[337527418,1725750843904,456.37,0.00011319,2]
[337527420,1725750978520,166.94,0.00010959,2]
[337527421,1725751247205,200.0,0.00027,120]
[337527423,1725751428082,441.74,0.00010245,2]
[337527424,1725751545856,161189.61164591,0.00032151,120]
[337527425,1725751561735,305.37,0.00010959,2]
[337527442,1725751773935,-2991.65556412,0.00012065,2]
[337527443,1725751808182,2000.0,0.00027,120]
[337527454,1725751831760,-1195.21443588,0.00012065,2]
[337527455,1725751831770,-250.0,0.0001219,2]
[337527456,1725751831781,-640.0,0.00012197,2]
[337527457,1725751831791,-441.74,0.00012509,2]
[337527458,1725751831802,-7970.50192413,0.00012699,2]
[337527459,1725751831814,-200.0,0.000127,4]
[337527460,1725751831825,-508.339,0.0001274,2]
[337527461,1725751831835,-171.686,0.0001274,2]
[337527462,1725751831845,-260.5687,0.000128,2]
[337527463,1725751831857,-500.0,0.000128,4]
[337527464,1725751831868,-1261.8627,0.000128,2]
[337527466,1725751831879,-271.85007861,0.000128,2]
[337527468,1725751831890,-360.0,0.00012804,2]